lending/lending_fUSD_20251022
["ID","MTS","AMOUNT","RATE_DAILY","PERIOD"]
[392084956,1761139856658,-500.0,0.00049656,120]
[392084957,1761139856671,-644.55,0.00049656,120]
[392084958,1761139856680,-500.0,0.00049657,120]
[392084959,1761139856690,-550.66,0.00049657,120]
[392084960,1761139856700,-500.0,0.00049761,120]
[392084961,1761139856710,-642.22,0.00049761,120]
[392084962,1761139856720,-500.0,0.00049761,120]
[392084963,1761139856730,-500.0,0.00049761,120]
[392084964,1761139856742,-500.0,0.00049761,120]
[392084965,1761139856753,-445.79,0.00049761,120]
[392084966,1761139856762,-500.0,0.00049761,120]
[392084967,1761139856772,-594.6,0.00049761,120]
[392084968,1761139856782,-500.0,0.00049761,120]
[392084969,1761139856792,-500.0,0.00049762,120]
[392084970,1761139856802,-522.61,0.00049762,120]
[392084971,1761139856812,-500.0,0.00049762,120]
[392084972,1761139856822,-326.8,0.0004986,120]
[392084973,1761139856832,-151.0,0.000499,27]
[392084974,1761139856842,-500.0,0.0004993,120]
[392084975,1761139856851,-500.0,0.0004993,120]
[392084976,1761139856861,-544.2,0.0004993,120]
[392084977,1761139856870,-500.0,0.0004993,120]
[392084978,1761139856880,-500.0,0.0004993,120]
[392084979,1761139856889,-264.87,0.0004993,120]
[392084980,1761139856900,-281.04,0.00049931,120]
[392084981,1761139856909,-550.66,0.00049931,120]
[392084982,1761139856920,-2672.48685873,0.00049986,120]
[392084983,1761139856930,-175.57494869,0.00049999,120]
[392084984,1761139856940,-452.16641603,0.00049999,120]
[392084985,1761139856949,-257.7510252,0.00049999,120]
[392084986,1761139856959,-1000.0,0.0005,120]
[392084987,1761139856968,-242012.04125733,0.0005,120]
[392085008,1761140299877,-470.68,0.0002285,2]
[392085009,1761140299900,-470.68,0.00024053,2]
[392085010,1761140302047,-195.0,0.00025135,2]
[392085011,1761140302070,-60.51880611,0.00025135,2]
[392085014,1761140446918,-239.48119389,0.00025135,2]
[392085015,1761140446942,-2000.0,0.00025135,2]
[392085016,1761140446965,-470.68,0.00025255,2]
[392085017,1761140446987,-470.68,0.00026458,2]
[392085018,1761140447013,-300.0,0.00027648,120]
[392085019,1761140447036,-300.0,0.00027648,120]
[392085020,1761140447059,-470.68,0.0002766,2]
[392085021,1761140447080,-470.68,0.00028863,2]
[392085022,1761140447103,-1200.0,0.00029999,2]
[392085023,1761140447125,-300.0,0.00029999,2]
[392085024,1761140447146,-2063.75177387,0.0003,120]
[392085025,1761140481283,-470.68,0.00030066,2]
[392085026,1761140481307,-470.68,0.00031268,2]
[392085027,1761140481329,-470.68,0.00032471,2]
[392085028,1761140481352,-1496.5673,0.00033505,2]
[392085029,1761140481374,-470.68,0.00033674,2]
[392085030,1761140481397,-470.68,0.00034876,2]
[392085031,1761140489176,-2022.71973224,0.00035478,2]
[392085033,1761140599561,174.98,0.00013699,2]
[392085197,1761141031868,-2686.89051173,0.00025,2]
[392085198,1761141031880,-150.0,0.00035,30]
[392085199,1761141031891,-150.0,0.00035,30]
[392085200,1761141031902,-150.0,0.00036,30]
[392085201,1761141031913,-150.0,0.00036,30]
[392085202,1761141031925,-470.68,0.00036079,2]
[392085203,1761141031935,-150.0,0.00037,30]
[392085204,1761141031945,-470.68,0.00037282,2]
[392085205,1761141031955,-150.0,0.00038,30]
[392085206,1761141031965,-150.0,0.00038,30]
[392085207,1761141031976,-470.68,0.00038484,2]
[392085208,1761141031987,-150.0,0.00039,30]
[392085209,1761141031997,-150.0,0.00039,30]
[392085210,1761141032008,-470.68,0.00039687,2]
[392085211,1761141032023,-150.0,0.0004,30]
[392085212,1761141032033,-150.0,0.0004,30]
[392085213,1761141032043,-470.68,0.00040889,2]
[392085214,1761141032054,-603.55737457,0.00041624,20]
[392085215,1761141032067,-62.44262543,0.00041624,20]
[392085216,1761141032077,-150.0,0.00041949,2]
[392085217,1761141032089,-470.68,0.00042092,2]
[392085218,1761141032099,-470.68,0.00043295,2]
[392085219,1761141032109,-150.0,0.00043299,4]
[392085220,1761141032120,-50505.7004866,0.000433,30]
[392085221,1761141032129,-500.0,0.00043834,31]
[392085222,1761141032139,-500.0,0.00043834,7]
[392085223,1761141032149,-500.0,0.00043834,15]
[392085224,1761141032159,-500.0,0.00043834,2]
[392085225,1761141032168,-518.39539317,0.00043834,31]
[392085226,1761141032179,-500.0,0.00043834,15]
[392085227,1761141032189,-244.60290907,0.00043834,15]
[392085230,1761141032209,-500.0,0.00043834,31]
[392085232,1761141032219,-500.0,0.00043834,2]
[392085233,1761141032230,-371.05226765,0.00043834,15]
[392085236,1761141032461,-128.94773235,0.00043834,15]
[392085237,1761141032471,-237.56444884,0.00043834,31]
[392085238,1761141032484,-262.43555116,0.00043834,31]
[392085239,1761141032495,-500.0,0.00043834,15]
[392085240,1761141032509,-500.0,0.00043835,120]
[392085241,1761141032519,-500.0,0.00043835,120]
[392085242,1761141032530,-500.0,0.00043835,30]
[392085243,1761141032540,-526.03226536,0.00043835,120]
[392085244,1761141032550,-500.0,0.00043835,120]
[392085245,1761141032561,-500.0,0.00043835,120]
[392085246,1761141032571,-500.0,0.00043835,120]
[392085247,1761141032582,-646.95952939,0.00043835,120]
[392085248,1761141032593,-500.0,0.00043835,120]
[392085249,1761141032603,-500.0,0.00043835,120]
[392085250,1761141032613,-500.0,0.00043835,120]
[392085251,1761141032627,-500.0,0.00043835,120]
[392085252,1761141032638,-500.0,0.00043835,120]
[392085253,1761141032648,-500.0,0.00043835,120]
[392085254,1761141032659,-500.0,0.00043835,120]
[392085255,1761141032669,-500.0,0.00043835,120]
[392085256,1761141032680,-592.05,0.00043835,2]
[392085257,1761141032691,-500.0,0.00043835,120]
[392085258,1761141032702,-500.0,0.00043835,90]
[392085259,1761141032712,-500.0,0.00043835,120]
[392085260,1761141032722,-500.0,0.00043835,120]
[392085261,1761141032734,-500.0,0.00043835,120]
[392085262,1761141032746,-500.0,0.00043835,120]
[392085263,1761141032759,-500.0,0.00043835,120]
[392085264,1761141032770,-500.0,0.00043835,120]
[392085265,1761141032780,-500.0,0.00043835,120]
[392085266,1761141032791,-500.0,0.00043835,120]
[392085267,1761141032803,-500.0,0.00043835,120]
[392085268,1761141032814,-500.0,0.00043835,12]
[392085269,1761141032824,-500.0,0.00043835,120]
[392085270,1761141032836,-500.0,0.00043835,120]
[392085271,1761141032847,-537.03,0.00043835,120]
[392085272,1761141032857,-500.0,0.00043835,120]
[392085273,1761141032867,-112.46057969,0.00043835,120]
[392085274,1761141032880,-387.53942031,0.00043835,120]
[392085275,1761141032891,-609.54,0.00043835,120]
[392085276,1761141032901,-500.0,0.00043835,120]
[392085277,1761141032911,-500.0,0.00043835,120]
[392085278,1761141032921,-641.69763614,0.00043835,120]
[392085279,1761141032931,-300.0,0.00043835,120]
[392085280,1761141032940,-500.0,0.00043835,120]
[392085281,1761141032949,-75.80014358,0.00043835,120]
[392085282,1761141032960,-424.19985642,0.00043835,120]
[392085283,1761141032969,-500.0,0.00043835,120]
[392085284,1761141032980,-500.0,0.00043835,120]
[392085285,1761141032990,-500.0,0.00043835,120]
[392085286,1761141033000,-500.0,0.00043835,120]
[392085287,1761141033011,-500.0,0.00043835,120]
[392085288,1761141033025,-500.0,0.00043835,120]
[392085289,1761141033036,-500.0,0.00043835,120]
[392085290,1761141033046,-500.0,0.00043835,60]
[392085291,1761141033060,-500.0,0.00043835,120]
[392085292,1761141033071,-500.0,0.00043835,120]
[392085293,1761141033082,-500.0,0.00043835,120]
[392085294,1761141033094,-500.0,0.00043835,120]
[392085295,1761141033106,-269.97022214,0.00043835,120]
[392085296,1761141033116,-500.0,0.00043835,120]
[392085297,1761141033127,-500.0,0.00043835,120]
[392085298,1761141033138,-500.0,0.00043835,120]
[392085299,1761141033149,-500.0,0.00043835,120]
[392085300,1761141033160,-500.0,0.00043835,120]
[392085301,1761141033171,-500.0,0.00043835,120]
[392085302,1761141033182,-500.0,0.00043835,120]
[392085303,1761141033194,-500.0,0.00043835,120]
[392085304,1761141033204,-503.85,0.00043835,120]
[392085305,1761141033215,-500.0,0.00043835,120]
[392085306,1761141033226,-500.0,0.00043835,120]
[392085307,1761141033236,-500.0,0.00044109,120]
[392085308,1761141033247,-500.0,0.00044109,120]
[392085309,1761141033261,-500.0,0.00044109,30]
[392085310,1761141033274,-500.0,0.00044109,120]
[392085311,1761141033285,-500.0,0.00044109,120]
[392085312,1761141033295,-500.0,0.00044109,120]
[392085313,1761141033306,-500.0,0.00044109,120]
[392085314,1761141033317,-453.82,0.00044109,120]
[392085315,1761141033327,-500.0,0.00044109,120]
[392085316,1761141033338,-500.0,0.00044109,120]
[392085317,1761141033349,-500.0,0.00044109,120]
[392085318,1761141033359,-576.56,0.00044109,120]
[392085319,1761141033370,-512.14,0.00044109,120]
[392085320,1761141033381,-500.0,0.00044109,120]
[392085321,1761141033391,-154.91,0.00044109,120]
[392085322,1761141033402,-500.0,0.00044109,120]
[392085323,1761141033413,-500.0,0.00044109,120]
[392085324,1761141033424,-500.0,0.00044109,120]
[392085325,1761141033434,-500.0,0.00044109,120]
[392085326,1761141033446,-500.0,0.00044109,120]
[392085327,1761141033457,-524.44,0.00044109,120]
[392085328,1761141033467,-500.0,0.00044109,120]
[392085329,1761141033478,-81.874509,0.00044109,120]
[392085333,1761141037625,-418.125491,0.00044109,120]
[392085334,1761141037636,-500.0,0.00044109,120]
[392085335,1761141037646,-500.0,0.00044109,120]
[392085336,1761141037655,-500.0,0.00044109,120]
[392085337,1761141037664,-500.0,0.00044109,120]
[392085338,1761141037673,-500.0,0.00044109,120]
[392085339,1761141037682,-500.0,0.00044109,120]
[392085340,1761141037693,-500.0,0.00044109,120]
[392085341,1761141037702,-500.0,0.00044109,120]
[392085342,1761141037711,-468.70841808,0.00044109,60]
[392085343,1761141037721,-500.0,0.00044109,120]
[392085344,1761141037732,-500.0,0.00044109,120]
[392085345,1761141037742,-500.0,0.00044109,120]
[392085346,1761141037751,-500.0,0.00044109,120]
[392085347,1761141037760,-500.0,0.00044109,120]
[392085348,1761141037774,-500.0,0.00044109,120]
[392085349,1761141037785,-500.0,0.00044109,120]
[392085350,1761141037794,-500.0,0.00044109,120]
[392085351,1761141037805,-500.0,0.00044109,120]
[392085352,1761141037814,-194.44194797,0.00044109,30]
[392085353,1761141037823,-500.73416328,0.00044173,10]
[392085354,1761141037832,-500.0,0.00044173,2]
[392085355,1761141037842,-500.0,0.00044383,120]
[392085356,1761141037851,-500.0,0.00044383,120]
[392085357,1761141037861,-500.0,0.00044383,120]
[392085358,1761141037870,-212.18,0.00044383,120]
[392085359,1761141037879,-500.0,0.00044383,120]
[392085360,1761141037889,-169.66,0.00044383,120]
[392085361,1761141037900,-574.72,0.00044383,120]
[392085363,1761141037910,-545.15,0.00044383,120]
[392085365,1761141037919,-500.0,0.00044383,120]
[392085367,1761141037929,-537.56,0.00044383,120]
[392085369,1761141037938,-219.85,0.00044383,120]
[392085371,1761141037947,-454.44,0.00044383,120]
[392085373,1761141037956,-500.0,0.00044383,120]
[392085375,1761141037967,-478.8,0.00044383,120]
[392085376,1761141037977,-500.0,0.00044383,120]
[392085378,1761141037986,-352.24,0.00044383,120]
[392085379,1761141037995,-168.48,0.00044383,120]
[392085380,1761141038006,-500.0,0.00044383,120]
[392085381,1761141038016,-500.0,0.00044383,120]
[392085382,1761141038029,-500.0,0.00044383,120]
[392085383,1761141038039,-637.8,0.00044383,120]
[392085384,1761141038049,-399.21,0.00044383,120]
[392085385,1761141038059,-478.62,0.00044383,120]
[392085386,1761141038068,-401.18,0.00044383,120]
[392085387,1761141038078,-470.68,0.00044497,2]
[392085388,1761141038088,-269.15265017,0.00044557,15]
[392085389,1761141038097,-534.48,0.00044657,120]
[392085390,1761141038107,-443.14,0.00044657,120]
[392085391,1761141038117,-500.0,0.00044657,120]
[392085392,1761141038127,-500.0,0.00044657,120]
[392085393,1761141038137,-500.0,0.00044657,120]
[392085394,1761141038147,-500.0,0.00044657,120]
[392085395,1761141038156,-500.0,0.00044657,120]
[392085396,1761141038166,-500.0,0.00044657,120]
[392085397,1761141038176,-500.0,0.00044657,120]
[392085398,1761141038186,-199.67,0.00044657,120]
[392085399,1761141038195,-269.15265015,0.00044928,15]
[392085400,1761141038204,-263.6,0.00044931,120]
[392085401,1761141038214,-500.0,0.00044931,120]
[392085402,1761141038224,-512.38,0.00044931,120]
[392085403,1761141038234,-220.48,0.00044931,120]
[392085404,1761141038243,-500.0,0.00044931,120]
[392085405,1761141038253,-500.0,0.00044931,120]
[392085406,1761141038263,-500.0,0.00044931,120]
[392085407,1761141038273,-593.68,0.00045205,120]
[392085408,1761141038283,-500.0,0.00045205,120]
[392085409,1761141038292,-500.0,0.00045205,120]
[392085410,1761141038302,-500.0,0.00045205,120]
[392085411,1761141038312,-269.15265015,0.000453,15]
[392085412,1761141038321,-151.97504289,0.00045437,60]
[392085413,1761141038331,-150.0,0.00045437,60]
[392085414,1761141038341,-250.0,0.00045437,60]
[392085415,1761141038351,-150.0,0.00045437,60]
[392085416,1761141038360,-150.0,0.00045437,60]
[392085417,1761141038370,-150.0,0.00045437,60]
[392085418,1761141038379,-244.42365491,0.00045437,60]
[392085419,1761141038389,-150.0,0.00045437,60]
[392085420,1761141038398,-151.43004729,0.00045437,60]
[392085421,1761141038408,-150.0,0.00045437,60]
[392085422,1761141038417,-150.0,0.00045437,60]
[392085423,1761141038428,-150.0,0.00045437,60]
[392085424,1761141038438,-150.0,0.00045437,60]
[392085425,1761141038447,-634.88,0.00045479,120]
[392085426,1761141038456,-500.0,0.00045479,120]
[392085427,1761141038466,-500.0,0.00045479,120]
[392085428,1761141038476,-150.0,0.00045492,60]
[392085429,1761141038485,-150.0,0.00045492,60]
[392085430,1761141038496,-150.0,0.00045492,60]
[392085431,1761141038506,-150.0,0.00045492,60]
[392085432,1761141038516,-200.0,0.00045547,60]
[392085433,1761141038526,-200.0,0.00045547,60]
[392085434,1761141038536,-200.0,0.00045547,60]
[392085435,1761141038545,-200.0,0.00045547,60]
[392085436,1761141038554,-269.15265015,0.00045671,15]
[392085437,1761141038562,-470.68,0.000457,2]
[392085438,1761141038572,-500.0,0.00045753,120]
[392085439,1761141038581,-601.32,0.00045753,120]
[392085440,1761141038590,-250.0,0.000458,2]
[392085441,1761141038600,-222.1317676,0.00045898,28]
[392085442,1761141038609,-177.02753099,0.000459,21]
[392085443,1761141038619,-160.56398267,0.000459,21]
[392085444,1761141038630,-5000.0,0.000459,120]
[392085445,1761141038640,-9679.75169651,0.000459,120]
[392085446,1761141038650,-1419.59823096,0.000459,18]
[392085447,1761141038660,-55555.0,0.000459,120]
[392085448,1761141038670,-299.343114,0.00045973,2]
[392085449,1761141038680,-500.0,0.00045989,120]
[392085450,1761141038690,-500.0,0.00045989,120]
[392085451,1761141038700,-500.0,0.00045989,120]
[392085452,1761141038710,-500.0,0.00045989,120]
[392085453,1761141038719,-500.0,0.00045989,120]
[392085454,1761141038729,-500.0,0.00045989,120]
[392085455,1761141038739,-500.0,0.00045989,120]
[392085456,1761141038748,-500.0,0.00045989,120]
[392085457,1761141038758,-500.0,0.00045989,120]
[392085458,1761141038768,-500.0,0.00045989,120]
[392085459,1761141038778,-500.0,0.00045989,120]
[392085460,1761141038788,-244.16962861,0.00045989,120]
[392085461,1761141038798,-500.0,0.00045989,120]
[392085462,1761141038808,-500.0,0.00045989,120]
[392085463,1761141038818,-500.0,0.00045989,120]
[392085464,1761141038828,-500.0,0.00045989,120]
[392085465,1761141038837,-500.0,0.00045989,120]
[392085466,1761141038848,-500.0,0.00045989,120]
[392085467,1761141038858,-500.0,0.00045989,60]
[392085468,1761141038868,-500.0,0.00045989,120]
[392085469,1761141038879,-500.0,0.00045989,120]
[392085470,1761141038888,-499.3951069,0.00045989,120]
[392085471,1761141038898,-90663.1937464,0.0004599,3]
[392085472,1761141038914,-150.71,0.0004599,2]
[392085473,1761141038927,-201.67462191,0.0004599,7]
[392085474,1761141038936,-500.0,0.00045998,120]
[392085475,1761141038946,-500.0,0.00045998,120]
[392085476,1761141038956,-500.0,0.00045998,120]
[392085477,1761141038966,-500.0,0.00045998,120]
[392085478,1761141038978,-500.0,0.00045998,120]
[392085479,1761141038989,-500.0,0.00045998,120]
[392085480,1761141038999,-500.0,0.00045998,120]
[392085481,1761141039011,-500.0,0.00045998,120]
[392085482,1761141039025,-500.0,0.00045998,120]
[392085483,1761141039036,-500.0,0.00045998,120]
[392085484,1761141039047,-500.0,0.00045998,120]
[392085485,1761141039058,-500.0,0.00045998,120]
[392085486,1761141039068,-500.0,0.00045998,120]
[392085487,1761141039079,-500.0,0.00045998,120]
[392085488,1761141039090,-500.0,0.00045998,120]
[392085489,1761141039101,-230.63550738,0.00045998,120]
[392085490,1761141039115,-500.0,0.00045998,120]
[392085491,1761141039125,-500.0,0.00045998,120]
[392085492,1761141039136,-500.0,0.00045998,120]
[392085493,1761141039147,-500.0,0.00045998,120]
[392085494,1761141039157,-500.0,0.00045998,120]
[392085495,1761141039166,-500.0,0.00045998,120]
[392085496,1761141039177,-500.0,0.00045998,120]
[392085497,1761141039187,-500.0,0.00045998,120]
[392085498,1761141039198,-500.0,0.00045998,120]
[392085499,1761141039207,-500.0,0.00045998,120]
[392085500,1761141039217,-500.0,0.00045998,120]
[392085501,1761141039227,-500.0,0.00045998,120]
[392085502,1761141039238,-500.0,0.00045998,120]
[392085503,1761141039248,-500.0,0.00045998,120]
[392085504,1761141039259,-500.0,0.00045998,120]
[392085505,1761141039269,-500.0,0.00045998,120]
[392085506,1761141039278,-500.0,0.00045998,120]
[392085507,1761141039288,-500.0,0.00045998,120]
[392085508,1761141039298,-500.0,0.00045998,120]
[392085509,1761141039308,-500.0,0.00045998,120]
[392085510,1761141039322,-500.0,0.00045999,120]
[392085511,1761141039331,-504.28,0.00045999,120]
[392085512,1761141039341,-500.0,0.00045999,120]
[392085513,1761141039350,-500.0,0.00045999,30]
[392085514,1761141039359,-500.0,0.00045999,120]
[392085515,1761141039369,-500.0,0.00045999,120]
[392085516,1761141039378,-500.0,0.00045999,120]
[392085517,1761141039387,-500.0,0.00045999,120]
[392085518,1761141039398,-500.0,0.00045999,120]
[392085519,1761141039408,-1000.0,0.00045999,120]
[392085520,1761141039419,-600.44393757,0.00045999,120]
[392085521,1761141039428,-529.22990904,0.00045999,120]
[392085522,1761141039438,-500.0,0.00045999,120]
[392085523,1761141039447,-500.0,0.00045999,120]
[392085524,1761141039457,-500.0,0.00045999,120]
[392085525,1761141039466,-500.0,0.00045999,120]
[392085526,1761141039476,-500.0,0.00045999,120]
[392085527,1761141039485,-594.84452492,0.00045999,120]
[392085528,1761141039495,-500.0,0.00045999,120]
[392085529,1761141039505,-500.0,0.00045999,120]
[392085531,1761141039518,-500.0,0.00045999,120]
[392085532,1761141039527,-500.0,0.00045999,120]
[392085534,1761141039537,-500.0,0.00045999,120]
[392085535,1761141039547,-500.0,0.00045999,120]
[392085536,1761141039557,-500.0,0.00045999,120]
[392085537,1761141039567,-500.0,0.00045999,2]
[392085538,1761141039577,-500.0,0.00045999,120]
[392085539,1761141039587,-500.0,0.00045999,120]
[392085540,1761141039598,-500.0,0.00045999,120]
[392085541,1761141039608,-500.0,0.00045999,120]
[392085542,1761141039619,-500.0,0.00045999,120]
[392085543,1761141039629,-297.22796099,0.00045999,120]
[392085544,1761141039639,-500.0,0.00045999,120]
[392085545,1761141039649,-500.0,0.00045999,120]
[392085546,1761141039659,-500.0,0.00045999,120]
[392085547,1761141039668,-500.0,0.00045999,120]
[392085548,1761141039679,-999.0,0.00045999,120]
[392085549,1761141039689,-500.0,0.00045999,120]
[392085550,1761141039699,-500.0,0.00045999,120]
[392085551,1761141039712,-500.0,0.00045999,120]
[392085552,1761141039722,-500.0,0.00045999,120]
[392085553,1761141039732,-500.0,0.00045999,120]
[392085554,1761141039741,-500.0,0.00045999,120]
[392085555,1761141039751,-500.0,0.00045999,120]
[392085556,1761141039763,-500.0,0.00045999,120]
[392085557,1761141039772,-500.0,0.00045999,120]
[392085558,1761141039783,-500.0,0.00045999,120]
[392085559,1761141039792,-1000000.0,0.00046,120]
[392085560,1761141039802,-1000000.0,0.00046,120]
[392085561,1761141039812,-304.18851663,0.00046027,120]
[392085562,1761141039822,-269.15265015,0.00046043,15]
[392085563,1761141039832,-150.71,0.00046263,2]
[392085564,1761141039842,-500.0,0.00046263,120]
[392085565,1761141039851,-644.34,0.00046263,120]
[392085566,1761141039860,-500.0,0.00046263,120]
[392085567,1761141039870,-500.0,0.00046263,120]
[392085568,1761141039880,-500.0,0.00046263,120]
[392085569,1761141039889,-500.0,0.00046263,120]
[392085570,1761141039899,-500.0,0.00046263,120]
[392085571,1761141039914,-500.0,0.00046263,120]
[392085572,1761141039924,-500.0,0.00046263,120]
[392085573,1761141039935,-500.0,0.00046263,120]
[392085574,1761141039946,-500.0,0.00046263,120]
[392085575,1761141039956,-500.0,0.00046263,120]
[392085576,1761141039965,-500.0,0.00046263,120]
[392085577,1761141039975,-500.0,0.00046263,60]
[392085578,1761141039984,-500.0,0.00046263,120]
[392085579,1761141039994,-500.0,0.00046272,120]
[392085580,1761141040003,-500.0,0.00046272,120]
[392085581,1761141040015,-500.0,0.00046272,120]
[392085582,1761141040028,-500.0,0.00046272,120]
[392085583,1761141040038,-500.0,0.00046272,120]
[392085584,1761141040049,-500.0,0.00046272,120]
[392085585,1761141040059,-500.0,0.00046272,120]
[392085586,1761141040068,-500.0,0.00046272,120]
[392085587,1761141040079,-500.0,0.00046272,120]
[392085588,1761141040088,-500.0,0.00046272,120]
[392085589,1761141040100,-500.0,0.00046272,120]
[392085590,1761141040110,-500.0,0.00046272,120]
[392085591,1761141040120,-500.0,0.00046272,120]
[392085592,1761141040130,-500.0,0.00046272,120]
[392085593,1761141040140,-500.0,0.00046272,120]
[392085594,1761141040151,-500.0,0.00046272,120]
[392085595,1761141040161,-500.0,0.00046272,120]
[392085597,1761141040373,-500.0,0.00046272,120]
[392085598,1761141040383,-500.0,0.00046272,120]
[392085599,1761141040393,-500.0,0.00046272,120]
[392085600,1761141040402,-500.0,0.00046272,120]
[392085601,1761141040412,-500.0,0.00046272,120]
[392085602,1761141040423,-500.0,0.00046272,120]
[392085603,1761141040432,-500.0,0.00046272,120]
[392085604,1761141040441,-500.0,0.00046272,120]
[392085605,1761141040450,-533.62,0.00046272,120]
[392085606,1761141040459,-500.0,0.00046272,120]
[392085607,1761141040469,-500.0,0.00046272,120]
[392085608,1761141040478,-500.0,0.00046272,120]
[392085609,1761141040487,-500.0,0.00046272,120]
[392085610,1761141040497,-500.0,0.00046272,120]
[392085611,1761141040508,-500.0,0.00046272,120]
[392085612,1761141040518,-500.0,0.00046272,120]
[392085613,1761141040527,-562.04135299,0.00046273,120]
[392085614,1761141040537,-500.0,0.00046273,120]
[392085615,1761141040546,-596.43,0.00046273,30]
[392085616,1761141040555,-500.0,0.00046273,120]
[392085617,1761141040564,-500.0,0.00046273,120]
[392085618,1761141040573,-500.0,0.00046273,120]
[392085619,1761141040583,-500.0,0.00046273,120]
[392085620,1761141040592,-500.0,0.00046273,120]
[392085621,1761141040611,-1000.0,0.00046273,120]
[392085622,1761141040622,-500.0,0.00046273,120]
[392085623,1761141040632,-500.0,0.00046273,120]
[392085624,1761141040642,-368.7435861,0.00046273,120]
[392085625,1761141040653,-500.0,0.00046273,120]
[392085626,1761141040662,-500.0,0.00046273,120]
[392085627,1761141040672,-576.72178223,0.00046273,120]
[392085628,1761141040682,-500.0,0.00046273,120]
[392085629,1761141040692,-500.0,0.00046273,120]
[392085630,1761141040701,-500.0,0.00046273,120]
[392085631,1761141040711,-500.0,0.00046273,120]
[392085632,1761141040721,-500.0,0.00046273,120]
[392085633,1761141040731,-500.0,0.00046273,120]
[392085634,1761141040740,-500.0,0.00046273,2]
[392085635,1761141040750,-500.0,0.00046273,120]
[392085636,1761141040761,-244.38911256,0.00046273,120]
[392085637,1761141040771,-500.0,0.00046273,120]
[392085638,1761141040780,-500.0,0.00046273,120]
[392085639,1761141040790,-615.70642401,0.00046273,120]
[392085640,1761141040800,-500.0,0.00046273,120]
[392085641,1761141040810,-500.0,0.00046273,120]
[392085642,1761141040820,-500.0,0.00046273,120]
[392085643,1761141040830,-229.90050684,0.00046273,120]
[392085644,1761141040840,-500.0,0.00046273,120]
[392085645,1761141040849,-500.0,0.00046273,120]
[392085646,1761141040859,-500.0,0.00046273,120]
[392085647,1761141040869,-500.0,0.00046273,120]
[392085648,1761141040878,-578.00297359,0.00046273,120]
[392085649,1761141040888,-500.0,0.00046273,120]
[392085650,1761141040898,-500.0,0.00046273,120]
[392085651,1761141040908,-500.0,0.00046273,120]
[392085652,1761141040917,-500.0,0.00046273,120]
[392085653,1761141040928,-269.15265015,0.00046414,15]
[392085654,1761141040937,-153.0,0.00046459,120]
[392085655,1761141040947,-500.0,0.00046537,120]
[392085656,1761141040957,-452.08,0.00046537,120]
[392085657,1761141040967,-500.0,0.00046537,120]
[392085658,1761141040976,-500.0,0.00046537,120]
[392085659,1761141040990,-500.0,0.00046537,120]
[392085660,1761141041000,-500.0,0.00046537,120]